[Event "Titled Tuesday Blitz March 21 Early 2023"]
[White "Vaishali, Rameshbabu"]
[Black "Fedoseev, Vladimir"]
[WhiteFideId "5091756"]
[BlackFideId "24130737"]
[WhiteElo "2410"]
[BlackElo "2752"]
[Result "0-1"]
[Round "05"]
[TimeControl "180+2"]
[Date "2023.03.21"]
[WhiteClock "0:00:03"]
[BlackClock "0:00:15"]

1. e4 {[%clk 0:02:57]}  c6 {[%clk 0:02:48]} 2. d4 {[%clk 0:02:54]}  d5 {[%clk 0:02:47]} 3. e5 {[%clk 0:02:54]}  Bf5 {[%clk 0:02:47]} 4. h4 {[%clk 0:02:53]}  h5 {[%clk 0:02:47]} 5. Bd3 {[%clk 0:02:53]}  Bxd3 {[%clk 0:02:48]} 6. Qxd3 {[%clk 0:02:54]}  e6 {[%clk 0:02:49]} 7. Nf3 {[%clk 0:02:52]}  c5 {[%clk 0:02:49]} 8. c4 {[%clk 0:02:28]}  cxd4 {[%clk 0:02:38]} 9. cxd5 {[%clk 0:02:26]}  Qxd5 {[%clk 0:02:36]} 10. Qxd4 {[%clk 0:02:18]}  Qxd4 {[%clk 0:02:36]} 11. Nxd4 {[%clk 0:02:18]}  a6 {[%clk 0:02:32]} 12. Nc3 {[%clk 0:02:15]}  Bb4 {[%clk 0:02:30]} 13. Bd2 {[%clk 0:02:15]}  Bxc3 {[%clk 0:02:30]} 14. Bxc3 {[%clk 0:02:16]}  Ne7 {[%clk 0:02:30]} 15. Rh3 {[%clk 0:01:44]}  Nd7 {[%clk 0:02:29]} 16. Rg3 {[%clk 0:01:42]}  g6 {[%clk 0:02:23]} 17. Rd1 {[%clk 0:01:29]}  Rc8 {[%clk 0:02:22]} 18. Nf3 {[%clk 0:01:19]}  Nf5 {[%clk 0:02:17]} 19. Rh3 {[%clk 0:01:18]}  Nb6 {[%clk 0:02:17]} 20. Ng5 {[%clk 0:01:03]}  Rc4 {[%clk 0:01:55]} 21. Rd8+ {[%clk 0:00:46]}  Kxd8 {[%clk 0:01:54]} 22. Nxf7+ {[%clk 0:00:47]}  Ke8 {[%clk 0:01:55]} 23. Nxh8 {[%clk 0:00:47]}  Ne7 {[%clk 0:01:55]} 24. Rf3 {[%clk 0:00:30]}  Nbd5 {[%clk 0:01:45]} 25. Nf7 {[%clk 0:00:26]}  Rxh4 {[%clk 0:01:30]} 26. Nd6+ {[%clk 0:00:18]}  Kd7 {[%clk 0:01:29]} 27. Nxb7 {[%clk 0:00:19]}  Rc4 {[%clk 0:01:29]} 28. Nd6 {[%clk 0:00:18]}  Ra4 {[%clk 0:01:26]} 29. a3 {[%clk 0:00:17]}  Nf5 {[%clk 0:01:21]} 30. g3 {[%clk 0:00:16]}  Nxd6 {[%clk 0:01:07]} 31. exd6 {[%clk 0:00:17]}  Kxd6 {[%clk 0:01:08]} 32. Bd2 {[%clk 0:00:18]}  Re4+ {[%clk 0:01:01]} 33. Kf1 {[%clk 0:00:17]}  Rd4 {[%clk 0:01:00]} 34. Ba5 {[%clk 0:00:15]}  g5 {[%clk 0:00:56]} 35. Kg2 {[%clk 0:00:15]}  h4 {[%clk 0:00:54]} 36. gxh4 {[%clk 0:00:10]}  gxh4 {[%clk 0:00:47]} 37. Bd8 {[%clk 0:00:10]}  Kd7 {[%clk 0:00:43]} 38. Rf8 {[%clk 0:00:07]}  Nf4+ {[%clk 0:00:39]} 39. Kh2 {[%clk 0:00:06]}  e5 {[%clk 0:00:34]} 40. Rg8 {[%clk 0:00:05]}  Nd3 {[%clk 0:00:23]} 41. Bf6 {[%clk 0:00:05]}  Rf4 {[%clk 0:00:22]} 42. Bg5 {[%clk 0:00:03]}  Rxf2+ {[%clk 0:00:21]} 43. Kh3 {[%clk 0:00:03]}  Rxb2 {[%clk 0:00:21]} 44. Kxh4 {[%clk 0:00:02]}  Nc5 {[%clk 0:00:16]} 45. Rg6 {[%clk 0:00:02]}  Ne6 {[%clk 0:00:15]} 46. Bf6 {[%clk 0:00:01]}  Re2 {[%clk 0:00:14]} 47. Rg7+ {[%clk 0:00:02]}  Nxg7 {[%clk 0:00:14]} 48. Bxg7 {[%clk 0:00:02]}  Ke6 {[%clk 0:00:15]} 49. Kg5 {[%clk 0:00:02]}  Ra2 {[%clk 0:00:15]} 50. Kh6 {[%clk 0:00:03]} 0-1


[Site "https://www.chess.com"]

[Event "Titled Tuesday Blitz March 21 Early 2023"]
[White "Yilmaz, Mustafa"]
[Black "Fernandez Guillen, Ernesto J."]
[WhiteFideId "6302718"]
[BlackFideId "3512428"]
[WhiteElo "2523"]
[BlackElo "2423"]
[Result "1-0"]
[Round "05"]
[TimeControl "180+2"]
[Date "2023.03.21"]
[WhiteClock "0:00:17"]
[BlackClock "0:00:13"]

1. c4 {[%clk 0:03:00]}  e5 {[%clk 0:02:57]} 2. Nc3 {[%clk 0:03:00]}  Nc6 {[%clk 0:02:57]} 3. Nf3 {[%clk 0:03:00]}  f5 {[%clk 0:02:58]} 4. d3 {[%clk 0:02:58]}  Nf6 {[%clk 0:02:57]} 5. g3 {[%clk 0:02:58]}  d6 {[%clk 0:02:56]} 6. Bg2 {[%clk 0:02:58]}  g6 {[%clk 0:02:56]} 7. O-O {[%clk 0:02:58]}  Bg7 {[%clk 0:02:56]} 8. Rb1 {[%clk 0:02:58]}  O-O {[%clk 0:02:56]} 9. b4 {[%clk 0:02:57]}  h6 {[%clk 0:02:57]} 10. b5 {[%clk 0:02:57]}  Ne7 {[%clk 0:02:57]} 11. a4 {[%clk 0:02:57]}  g5 {[%clk 0:02:57]} 12. a5 {[%clk 0:02:57]}  Rb8 {[%clk 0:02:57]} 13. Ba3 {[%clk 0:02:54]}  b6 {[%clk 0:02:37]} 14. axb6 {[%clk 0:02:51]}  axb6 {[%clk 0:02:38]} 15. Nd2 {[%clk 0:02:49]}  g4 {[%clk 0:02:30]} 16. Bb2 {[%clk 0:02:45]}  h5 {[%clk 0:02:28]} 17. Ra1 {[%clk 0:02:41]}  h4 {[%clk 0:02:26]} 18. Ra7 {[%clk 0:02:41]}  Be6 {[%clk 0:02:24]} 19. Qb3 {[%clk 0:02:18]}  f4 {[%clk 0:02:23]} 20. Nde4 {[%clk 0:02:13]}  Nxe4 {[%clk 0:02:17]} 21. Bxe4 {[%clk 0:02:01]}  fxg3 {[%clk 0:01:47]} 22. hxg3 {[%clk 0:02:01]}  hxg3 {[%clk 0:01:44]} 23. fxg3 {[%clk 0:02:00]}  Rxf1+ {[%clk 0:01:39]} 24. Kxf1 {[%clk 0:02:00]}  Qf8+ {[%clk 0:01:35]} 25. Kg2 {[%clk 0:01:17]}  Qf7 {[%clk 0:01:33]} 26. Qd1 {[%clk 0:01:05]}  Rf8 {[%clk 0:01:31]} 27. Qg1 {[%clk 0:00:52]}  Qh5 {[%clk 0:00:40]} 28. Qh1 {[%clk 0:00:51]}  Qh3+ {[%clk 0:00:40]} 29. Qxh3 {[%clk 0:00:50]}  gxh3+ {[%clk 0:00:41]} 30. Kh2 {[%clk 0:00:40]}  Bh6 {[%clk 0:00:39]} 31. Ra8 {[%clk 0:00:31]}  Bc8 {[%clk 0:00:27]} 32. Ra1 {[%clk 0:00:21]}  Rf2+ {[%clk 0:00:21]} 33. Kh1 {[%clk 0:00:20]}  Kg7 {[%clk 0:00:17]} 34. Bf3 {[%clk 0:00:20]}  Nf5 {[%clk 0:00:15]} 35. Ne4 {[%clk 0:00:19]}  Bb7 {[%clk 0:00:13]} 36. Nxf2 {[%clk 0:00:18]}  Bxf3+ {[%clk 0:00:11]} 37. exf3 {[%clk 0:00:19]}  Nxg3+ {[%clk 0:00:12]} 38. Kh2 {[%clk 0:00:19]}  Ne2 {[%clk 0:00:13]} 39. Nxh3 {[%clk 0:00:17]}  Be3 {[%clk 0:00:13]} 40. Ra7 {[%clk 0:00:17]} 1-0


[Site "https://www.chess.com"]

[Event "Titled Tuesday Blitz March 21 Early 2023"]
[White "Starozhilov, Leonid"]
[Black "Grigoriants, Sergey"]
[WhiteFideId "14106752"]
[BlackFideId "4130804"]
[WhiteElo "2402"]
[BlackElo "2502"]
[Result "0-1"]
[Round "05"]
[TimeControl "180+2"]
[Date "2023.03.21"]
[WhiteClock "0:00:02"]
[BlackClock "0:00:04"]

1. e4 {[%clk 0:02:55]}  c6 {[%clk 0:02:59]} 2. d4 {[%clk 0:02:55]}  d5 {[%clk 0:03:00]} 3. exd5 {[%clk 0:02:55]}  cxd5 {[%clk 0:03:00]} 4. Bd3 {[%clk 0:02:56]}  Nc6 {[%clk 0:03:00]} 5. c3 {[%clk 0:02:56]}  Nf6 {[%clk 0:03:00]} 6. h3 {[%clk 0:02:57]}  g6 {[%clk 0:02:59]} 7. Bf4 {[%clk 0:02:56]}  Bf5 {[%clk 0:02:59]} 8. Be2 {[%clk 0:02:57]}  e6 {[%clk 0:02:58]} 9. Nf3 {[%clk 0:02:57]}  h6 {[%clk 0:02:55]} 10. Qb3 {[%clk 0:02:55]}  Bd6 {[%clk 0:02:43]} 11. Bxd6 {[%clk 0:02:29]}  Qxd6 {[%clk 0:02:43]} 12. Nbd2 {[%clk 0:02:28]}  O-O {[%clk 0:02:42]} 13. O-O {[%clk 0:02:28]}  Rab8 {[%clk 0:02:36]} 14. a4 {[%clk 0:02:26]}  g5 {[%clk 0:02:34]} 15. Rfe1 {[%clk 0:02:25]}  Ne4 {[%clk 0:02:30]} 16. Nxe4 {[%clk 0:02:20]}  Bxe4 {[%clk 0:02:26]} 17. Nd2 {[%clk 0:02:19]}  Bg6 {[%clk 0:02:22]} 18. Bb5 {[%clk 0:02:04]}  Ne7 {[%clk 0:02:17]} 19. Qd1 {[%clk 0:01:58]}  a6 {[%clk 0:02:11]} 20. Bf1 {[%clk 0:01:57]}  Nc6 {[%clk 0:02:10]} 21. Nf3 {[%clk 0:01:55]}  f6 {[%clk 0:02:10]} 22. Bd3 {[%clk 0:01:54]}  Bh5 {[%clk 0:02:04]} 23. Be2 {[%clk 0:01:35]}  Rbe8 {[%clk 0:02:04]} 24. Qd2 {[%clk 0:01:17]}  Kg7 {[%clk 0:02:00]} 25. Nh2 {[%clk 0:01:10]}  Bf7 {[%clk 0:01:55]} 26. Bd3 {[%clk 0:01:03]}  e5 {[%clk 0:01:53]} 27. dxe5 {[%clk 0:00:52]}  fxe5 {[%clk 0:01:54]} 28. Rad1 {[%clk 0:00:51]}  Qc7 {[%clk 0:01:38]} 29. Bf5 {[%clk 0:00:37]}  Bg8 {[%clk 0:01:32]} 30. Bg4 {[%clk 0:00:35]}  e4 {[%clk 0:01:32]} 31. f3 {[%clk 0:00:28]}  Qb6+ {[%clk 0:01:21]} 32. Qe3 {[%clk 0:00:20]}  d4 {[%clk 0:00:55]} 33. cxd4 {[%clk 0:00:13]}  exf3 {[%clk 0:00:55]} 34. Qxe8 {[%clk 0:00:14]}  f2+ {[%clk 0:00:56]} 35. Kh1 {[%clk 0:00:13]}  Rxe8 {[%clk 0:00:20]} 36. Rxe8 {[%clk 0:00:14]}  Bb3 {[%clk 0:00:16]} 37. Rf1 {[%clk 0:00:11]}  Qxd4 {[%clk 0:00:16]} 38. Re2 {[%clk 0:00:05]}  Bc4 {[%clk 0:00:16]} 39. Rexf2 {[%clk 0:00:04]}  Bxf1 {[%clk 0:00:16]} 40. Rxf1 {[%clk 0:00:05]}  Qxb2 {[%clk 0:00:13]} 41. Bh5 {[%clk 0:00:05]}  Ne5 {[%clk 0:00:12]} 42. Ng4 {[%clk 0:00:06]}  Nxg4 {[%clk 0:00:12]} 43. Rf7+ {[%clk 0:00:04]}  Kg8 {[%clk 0:00:10]} 44. hxg4 {[%clk 0:00:04]}  b5 {[%clk 0:00:05]} 45. axb5 {[%clk 0:00:03]}  axb5 {[%clk 0:00:06]} 46. Rb7 {[%clk 0:00:02]}  b4 {[%clk 0:00:06]} 47. Rb8+ {[%clk 0:00:01]}  Kg7 {[%clk 0:00:06]} 48. Rb5 {[%clk 0:00:02]}  Kf6 {[%clk 0:00:05]} 49. Rb6+ {[%clk 0:00:02]}  Ke5 {[%clk 0:00:05]} 50. Rxh6 {[%clk 0:00:02]}  b3 {[%clk 0:00:04]} 51. Rg6 {[%clk 0:00:02]}  Qc1+ {[%clk 0:00:03]} 52. Kh2 {[%clk 0:00:02]}  b2 {[%clk 0:00:04]} 53. Rb6 {[%clk 0:00:02]}  b1=Q {[%clk 0:00:04]} 0-1


[Site "https://www.chess.com"]

[Event "Titled Tuesday Blitz March 21 Early 2023"]
[White "Lewtak, Damian"]
[Black "Moroni, Luca Jr"]
[WhiteFideId "1141724"]
[BlackFideId "865834"]
[WhiteElo "2302"]
[BlackElo "2569"]
[Result "0-1"]
[Round "05"]
[TimeControl "180+2"]
[Date "2023.03.21"]
[WhiteClock "0:00:04"]
[BlackClock "0:00:12"]

1. e4 {[%clk 0:02:55]}  g6 {[%clk 0:03:00]} 2. Nf3 {[%clk 0:02:55]}  Bg7 {[%clk 0:03:00]} 3. d4 {[%clk 0:02:56]}  d6 {[%clk 0:03:00]} 4. c4 {[%clk 0:02:55]}  Nc6 {[%clk 0:02:58]} 5. d5 {[%clk 0:02:52]}  Ne5 {[%clk 0:02:58]} 6. Nxe5 {[%clk 0:02:49]}  Bxe5 {[%clk 0:02:59]} 7. Nc3 {[%clk 0:02:49]}  Bxc3+ {[%clk 0:02:54]} 8. bxc3 {[%clk 0:02:48]}  e5 {[%clk 0:02:54]} 9. h4 {[%clk 0:02:48]}  Qe7 {[%clk 0:02:49]} 10. h5 {[%clk 0:02:46]}  b6 {[%clk 0:02:46]} 11. c5 {[%clk 0:02:33]}  bxc5 {[%clk 0:02:44]} 12. Rb1 {[%clk 0:02:28]}  Kf8 {[%clk 0:02:37]} 13. Qf3 {[%clk 0:02:22]}  Kg7 {[%clk 0:02:28]} 14. Bd3 {[%clk 0:01:52]}  h6 {[%clk 0:02:28]} 15. hxg6 {[%clk 0:01:51]}  fxg6 {[%clk 0:02:28]} 16. Qg3 {[%clk 0:01:46]}  Nf6 {[%clk 0:02:26]} 17. Qh4 {[%clk 0:01:39]}  Ng8 {[%clk 0:02:18]} 18. Qg3 {[%clk 0:01:39]}  Qf6 {[%clk 0:01:52]} 19. f4 {[%clk 0:01:24]}  exf4 {[%clk 0:01:48]} 20. Bxf4 {[%clk 0:01:23]}  Qxc3+ {[%clk 0:01:45]} 21. Kf2 {[%clk 0:01:20]}  c4 {[%clk 0:01:40]} 22. Be2 {[%clk 0:01:13]}  Qxg3+ {[%clk 0:01:40]} 23. Bxg3 {[%clk 0:01:10]}  Nf6 {[%clk 0:01:39]} 24. Bf3 {[%clk 0:01:08]}  Re8 {[%clk 0:01:33]} 25. Rhe1 {[%clk 0:01:05]}  Nd7 {[%clk 0:01:27]} 26. Bf4 {[%clk 0:01:00]}  Nc5 {[%clk 0:01:23]} 27. Kg1 {[%clk 0:00:54]}  Nd3 {[%clk 0:01:22]} 28. Bd2 {[%clk 0:00:50]}  Nxe1 {[%clk 0:01:21]} 29. Bc3+ {[%clk 0:00:50]}  Kh7 {[%clk 0:01:21]} 30. Rxe1 {[%clk 0:00:51]}  Rb8 {[%clk 0:01:17]} 31. Kf2 {[%clk 0:00:50]}  Rb6 {[%clk 0:01:10]} 32. a4 {[%clk 0:00:43]}  Rb3 {[%clk 0:01:09]} 33. Re3 {[%clk 0:00:42]}  Bf5 {[%clk 0:01:03]} 34. a5 {[%clk 0:00:33]}  a6 {[%clk 0:01:03]} 35. g4 {[%clk 0:00:30]}  Bxe4 {[%clk 0:00:48]} 36. Bxe4 {[%clk 0:00:29]}  Rxc3 {[%clk 0:00:46]} 37. Bxg6+ {[%clk 0:00:22]}  Kxg6 {[%clk 0:00:47]} 38. Rxe8 {[%clk 0:00:16]}  Ra3 {[%clk 0:00:46]} 39. Rc8 {[%clk 0:00:16]}  Rxa5 {[%clk 0:00:46]} 40. Rxc7 {[%clk 0:00:16]}  Rc5 {[%clk 0:00:37]} 41. Rc6 {[%clk 0:00:16]}  Rxd5 {[%clk 0:00:30]} 42. Rxc4 {[%clk 0:00:16]}  a5 {[%clk 0:00:26]} 43. Rc8 {[%clk 0:00:14]}  Rc5 {[%clk 0:00:21]} 44. Ra8 {[%clk 0:00:12]}  Kg5 {[%clk 0:00:20]} 45. Kf3 {[%clk 0:00:09]}  d5 {[%clk 0:00:20]} 46. Rg8+ {[%clk 0:00:08]}  Kf6 {[%clk 0:00:20]} 47. Rh8 {[%clk 0:00:07]}  Kg7 {[%clk 0:00:17]} 48. Ra8 {[%clk 0:00:05]}  Kf6 {[%clk 0:00:17]} 49. Rh8 {[%clk 0:00:03]}  Ke5 {[%clk 0:00:14]} 50. Re8+ {[%clk 0:00:02]}  Kd4 {[%clk 0:00:13]} 51. Re6 {[%clk 0:00:03]}  a4 {[%clk 0:00:14]} 52. Rxh6 {[%clk 0:00:03]}  Ra5 {[%clk 0:00:13]} 53. Rh1 {[%clk 0:00:03]}  a3 {[%clk 0:00:13]} 54. g5 {[%clk 0:00:03]}  a2 {[%clk 0:00:13]} 55. Ra1 {[%clk 0:00:04]}  Kc3 {[%clk 0:00:13]} 56. g6 {[%clk 0:00:05]}  Kb2 {[%clk 0:00:12]} 57. g7 {[%clk 0:00:05]}  Ra8 {[%clk 0:00:12]} 58. Rg1 {[%clk 0:00:04]}  a1=Q {[%clk 0:00:11]} 59. Rxa1 {[%clk 0:00:04]}  Kxa1 {[%clk 0:00:12]} 0-1


[Site "https://www.chess.com"]

[Event "Titled Tuesday Blitz March 21 Early 2023"]
[White "Alvarez Calzadilla, Jose Avelino"]
[Black "Rustemov, Alexander"]
[WhiteFideId "3526151"]
[BlackFideId "4119002"]
[WhiteElo "2310"]
[BlackElo "2858"]
[Result "0-1"]
[Round "05"]
[TimeControl "180+2"]
[Date "2023.03.21"]
[WhiteClock "0:00:09"]
[BlackClock "0:01:23"]

1. d4 {[%clk 0:02:58]}  d5 {[%clk 0:02:56]} 2. Nf3 {[%clk 0:02:58]}  Nf6 {[%clk 0:02:55]} 3. e3 {[%clk 0:02:59]}  Bf5 {[%clk 0:02:50]} 4. c4 {[%clk 0:02:53]}  c6 {[%clk 0:02:46]} 5. Qb3 {[%clk 0:02:51]}  Qc7 {[%clk 0:02:43]} 6. Be2 {[%clk 0:02:47]}  e6 {[%clk 0:02:42]} 7. O-O {[%clk 0:02:47]}  Nbd7 {[%clk 0:02:40]} 8. Nc3 {[%clk 0:02:42]}  Nb6 {[%clk 0:02:35]} 9. c5 {[%clk 0:02:31]}  Nbd7 {[%clk 0:02:35]} 10. a4 {[%clk 0:02:30]}  a5 {[%clk 0:02:33]} 11. Bd2 {[%clk 0:02:19]}  Be7 {[%clk 0:02:33]} 12. Qa3 {[%clk 0:02:18]}  O-O {[%clk 0:02:32]} 13. Nh4 {[%clk 0:02:08]}  Bg4 {[%clk 0:02:21]} 14. b4 {[%clk 0:02:01]}  b6 {[%clk 0:02:12]} 15. f3 {[%clk 0:01:27]}  Bh5 {[%clk 0:02:11]} 16. g4 {[%clk 0:01:26]}  Bg6 {[%clk 0:02:10]} 17. Nxg6 {[%clk 0:01:26]}  hxg6 {[%clk 0:02:10]} 18. cxb6 {[%clk 0:00:53]}  Nxb6 {[%clk 0:02:04]} 19. Na2 {[%clk 0:00:52]}  axb4 {[%clk 0:02:02]} 20. Bxb4 {[%clk 0:00:41]}  Rxa4 {[%clk 0:01:58]} 21. Qb3 {[%clk 0:00:42]}  Rfa8 {[%clk 0:01:51]} 22. Bxe7 {[%clk 0:00:34]}  Qxe7 {[%clk 0:01:51]} 23. Qxb6 {[%clk 0:00:34]}  Rxa2 {[%clk 0:01:51]} 24. Rxa2 {[%clk 0:00:23]}  Rxa2 {[%clk 0:01:52]} 25. Rf2 {[%clk 0:00:14]}  Qa3 {[%clk 0:01:45]} 26. g5 {[%clk 0:00:11]}  Nh5 {[%clk 0:01:40]} 27. Qb8+ {[%clk 0:00:09]}  Kh7 {[%clk 0:01:40]} 28. Qe5 {[%clk 0:00:09]}  Qc1+ {[%clk 0:01:26]} 29. Kg2 {[%clk 0:00:09]}  Qe1 {[%clk 0:01:23]} 0-1


[Site "https://www.chess.com"]

[Event "Titled Tuesday Blitz March 21 Early 2023"]
[White "Turayev, Shahruh"]
[Black "Harsha Bharathakoti"]
[WhiteFideId "14003856"]
[BlackFideId "5078776"]
[WhiteElo "2171"]
[BlackElo "2481"]
[Result "0-1"]
[Round "05"]
[TimeControl "180+2"]
[Date "2023.03.21"]
[WhiteClock "0:00:22"]
[BlackClock "0:00:28"]

1. e4 {[%clk 0:03:00]}  e6 {[%clk 0:02:58]} 2. Nc3 {[%clk 0:03:00]}  d5 {[%clk 0:02:59]} 3. exd5 {[%clk 0:03:01]}  exd5 {[%clk 0:02:59]} 4. d4 {[%clk 0:03:01]}  c6 {[%clk 0:02:58]} 5. Bd3 {[%clk 0:03:01]}  Bd6 {[%clk 0:02:57]} 6. Nge2 {[%clk 0:02:54]}  Nf6 {[%clk 0:02:50]} 7. Bg5 {[%clk 0:02:53]}  h6 {[%clk 0:02:47]} 8. Bh4 {[%clk 0:02:52]}  O-O {[%clk 0:02:35]} 9. Qd2 {[%clk 0:02:52]}  Re8 {[%clk 0:02:22]} 10. f3 {[%clk 0:02:49]}  Ne4 {[%clk 0:02:01]} 11. Bxd8 {[%clk 0:02:41]}  Nxd2 {[%clk 0:02:01]} 12. Bh4 {[%clk 0:02:23]}  Nc4 {[%clk 0:02:01]} 13. Bxc4 {[%clk 0:02:23]}  dxc4 {[%clk 0:02:02]} 14. Bg3 {[%clk 0:02:23]}  Bf8 {[%clk 0:01:56]} 15. O-O-O {[%clk 0:02:14]}  Na6 {[%clk 0:01:48]} 16. Ne4 {[%clk 0:02:06]}  Be6 {[%clk 0:01:37]} 17. N2c3 {[%clk 0:02:04]}  Rad8 {[%clk 0:01:37]} 18. a3 {[%clk 0:01:58]}  f5 {[%clk 0:01:34]} 19. Nf2 {[%clk 0:01:49]}  Nb8 {[%clk 0:01:27]} 20. h4 {[%clk 0:01:27]}  Nd7 {[%clk 0:01:21]} 21. Nh3 {[%clk 0:01:19]}  Nf6 {[%clk 0:01:10]} 22. Nf4 {[%clk 0:01:15]}  Bf7 {[%clk 0:01:09]} 23. h5 {[%clk 0:00:41]}  Bd6 {[%clk 0:00:59]} 24. Nce2 {[%clk 0:00:36]}  Rd7 {[%clk 0:00:49]} 25. Bh4 {[%clk 0:00:30]}  Nxh5 {[%clk 0:00:46]} 26. Nxh5 {[%clk 0:00:28]}  Rxe2 {[%clk 0:00:45]} 27. g4 {[%clk 0:00:25]}  fxg4 {[%clk 0:00:29]} 28. fxg4 {[%clk 0:00:26]}  c3 {[%clk 0:00:30]} 29. Bg3 {[%clk 0:00:22]}  Bxh5 {[%clk 0:00:28]} 30. gxh5 {[%clk 0:00:22]}  Bxg3 {[%clk 0:00:28]} 0-1


[Site "https://www.chess.com"]

[Event "Titled Tuesday Blitz March 21 Early 2023"]
[White "Demin, Vladimir"]
[Black "Ahmadzada, Ahmad"]
[WhiteFideId "4167457"]
[BlackFideId "13413007"]
[WhiteElo "2632"]
[BlackElo "2388"]
[Result "0-1"]
[Round "05"]
[TimeControl "180+2"]
[Date "2023.03.21"]
[WhiteClock "0:00:02"]
[BlackClock "0:00:26"]

1. e4 {[%clk 0:03:00]}  a6 {[%clk 0:02:58]} 2. d4 {[%clk 0:03:00]}  b5 {[%clk 0:02:59]} 3. a4 {[%clk 0:02:58]}  b4 {[%clk 0:02:58]} 4. c3 {[%clk 0:02:55]}  Bb7 {[%clk 0:02:58]} 5. Bd3 {[%clk 0:02:54]}  e6 {[%clk 0:02:58]} 6. Ne2 {[%clk 0:02:52]}  Nf6 {[%clk 0:02:58]} 7. Ng3 {[%clk 0:02:51]}  c5 {[%clk 0:02:58]} 8. O-O {[%clk 0:02:49]}  bxc3 {[%clk 0:02:57]} 9. bxc3 {[%clk 0:02:49]}  cxd4 {[%clk 0:02:58]} 10. cxd4 {[%clk 0:02:49]}  Nc6 {[%clk 0:02:59]} 11. Nc3 {[%clk 0:02:43]}  Bb4 {[%clk 0:02:57]} 12. Bd2 {[%clk 0:02:38]}  d6 {[%clk 0:02:42]} 13. Rb1 {[%clk 0:02:32]}  a5 {[%clk 0:02:40]} 14. d5 {[%clk 0:02:12]}  Ne5 {[%clk 0:02:38]} 15. Bb5+ {[%clk 0:02:11]}  Ned7 {[%clk 0:02:39]} 16. Nce2 {[%clk 0:01:41]}  exd5 {[%clk 0:02:32]} 17. Bxb4 {[%clk 0:01:35]}  axb4 {[%clk 0:02:31]} 18. Rxb4 {[%clk 0:01:36]}  O-O {[%clk 0:02:29]} 19. exd5 {[%clk 0:01:31]}  Nxd5 {[%clk 0:02:26]} 20. Rd4 {[%clk 0:01:27]}  N7f6 {[%clk 0:02:26]} 21. Nf5 {[%clk 0:01:21]}  g6 {[%clk 0:02:24]} 22. Ne3 {[%clk 0:01:16]}  Nxe3 {[%clk 0:02:24]} 23. fxe3 {[%clk 0:01:17]}  Qe7 {[%clk 0:02:24]} 24. Kh1 {[%clk 0:01:05]}  Rac8 {[%clk 0:02:15]} 25. Ng3 {[%clk 0:00:58]}  h5 {[%clk 0:02:00]} 26. Qd3 {[%clk 0:00:52]}  Ng4 {[%clk 0:01:58]} 27. e4 {[%clk 0:00:48]}  Rc1 {[%clk 0:01:48]} 28. Kg1 {[%clk 0:00:39]}  Rfc8 {[%clk 0:01:45]} 29. h3 {[%clk 0:00:35]}  Rxf1+ {[%clk 0:01:35]} 30. Nxf1 {[%clk 0:00:35]}  Nf6 {[%clk 0:01:33]} 31. Rxd6 {[%clk 0:00:28]}  Nxe4 {[%clk 0:01:33]} 32. Rd7 {[%clk 0:00:27]}  Qc5+ {[%clk 0:01:13]} 33. Qe3 {[%clk 0:00:27]}  Qxe3+ {[%clk 0:01:07]} 34. Nxe3 {[%clk 0:00:28]}  Bc6 {[%clk 0:01:07]} 35. Rd4 {[%clk 0:00:21]}  Bxb5 {[%clk 0:01:03]} 36. axb5 {[%clk 0:00:22]}  Rc1+ {[%clk 0:01:03]} 37. Kh2 {[%clk 0:00:22]}  f5 {[%clk 0:01:02]} 38. Rb4 {[%clk 0:00:19]}  h4 {[%clk 0:01:00]} 39. b6 {[%clk 0:00:16]}  Ng3 {[%clk 0:00:42]} 40. Rxh4 {[%clk 0:00:15]}  Ne4 {[%clk 0:00:43]} 41. Nd5 {[%clk 0:00:12]}  Rb1 {[%clk 0:00:40]} 42. Rf4 {[%clk 0:00:11]}  Rb5 {[%clk 0:00:39]} 43. b7 {[%clk 0:00:05]}  Rxb7 {[%clk 0:00:38]} 44. g4 {[%clk 0:00:06]}  Rb2+ {[%clk 0:00:36]} 45. Kg1 {[%clk 0:00:05]}  Ng5 {[%clk 0:00:36]} 46. Kf1 {[%clk 0:00:03]}  Nxh3 {[%clk 0:00:36]} 47. Ra4 {[%clk 0:00:03]}  f4 {[%clk 0:00:32]} 48. Nxf4 {[%clk 0:00:02]}  Rf2+ {[%clk 0:00:32]} 49. Ke1 {[%clk 0:00:03]}  Rxf4 {[%clk 0:00:33]} 50. Ra6 {[%clk 0:00:03]}  Rxg4 {[%clk 0:00:33]} 51. Ke2 {[%clk 0:00:04]}  Kg7 {[%clk 0:00:33]} 52. Kf3 {[%clk 0:00:04]}  Rg1 {[%clk 0:00:33]} 53. Ra8 {[%clk 0:00:03]}  Ng5+ {[%clk 0:00:33]} 54. Kf2 {[%clk 0:00:04]}  Rc1 {[%clk 0:00:33]} 55. Kg3 {[%clk 0:00:03]}  Nf7 {[%clk 0:00:32]} 56. Kf4 {[%clk 0:00:03]}  Rc4+ {[%clk 0:00:32]} 57. Kg3 {[%clk 0:00:03]}  g5 {[%clk 0:00:32]} 58. Ra7 {[%clk 0:00:04]}  Rc6 {[%clk 0:00:31]} 59. Ra5 {[%clk 0:00:04]}  Kg6 {[%clk 0:00:31]} 60. Ra8 {[%clk 0:00:04]}  Kf5 {[%clk 0:00:30]} 61. Kf3 {[%clk 0:00:04]}  Rc3+ {[%clk 0:00:30]} 62. Kf2 {[%clk 0:00:05]}  g4 {[%clk 0:00:30]} 63. Rf8 {[%clk 0:00:04]}  Rc7 {[%clk 0:00:29]} 64. Kg2 {[%clk 0:00:04]}  Kf4 {[%clk 0:00:28]} 65. Ra8 {[%clk 0:00:02]}  Ng5 {[%clk 0:00:27]} 66. Ra5 {[%clk 0:00:02]}  Rc2+ {[%clk 0:00:26]} 0-1


[Site "https://www.chess.com"]